bitfinex/quotes_SOLUSD_20250719
["timestamp","ask_amount","ask_price","bid_price","bid_amount"]
[1752925618541,3.09812024,177.12,177.11,40.14]
[1752925619334,3.09812024,177.13,177.11,40.14]
[1752925619530,3.09812024,177.13,177.12,0.66]
[1752925620244,3.09812024,177.14,177.12,0.66]
[1752925620425,3.09812024,177.14,177.13,0.66]
[1752925621071,3.09812024,177.14,177.11,39.48]
[1752925621072,6.45624048,177.14,177.1,0.03]
[1752925621222,3.09812024,177.11,177.1,0.03]
[1752925621623,3.35812024,177.11,177.1,0.03]
[1752925622257,9.00432881,177.11,177.09,0.03]
[1752925622461,3.35812024,177.1,177.09,1e-08]
[1752925624445,9.00464762,177.1,177.09,1e-08]
[1752925628325,48.48464762,177.1,177.09,1e-08]
[1752925631298,26.0,177.08,177.05,0.03]
[1752925631592,3.09812024,177.06,177.05,0.03]
[1752925632388,65.48,177.07,177.05,0.03]
[1752925632591,3.09812024,177.06,177.05,0.03]
[1752925632753,8.74592324,177.06,177.05,0.03]
[1752925633191,26.22355099,177.06,177.01,0.03]
[1752925633353,3.09812024,177.02,177.01,0.03]
[1752925633796,3.35812024,177.02,177.01,0.03]
[1752925635090,9.00719944,177.02,177.01,0.03]
[1752925635257,23.12989744,177.02,176.95,0.66]
[1752925635462,3.09812024,176.96,176.95,0.66]
[1752925635973,19.7717772,177.02,176.95,0.66]
[1752925636310,3.09812024,176.97,176.95,0.66]
[1752925636457,3.09812024,176.96,176.95,0.66]
[1752925636857,39.54,177.0,176.95,0.66]
[1752925637062,3.09812024,176.96,176.95,0.66]
[1752925637471,8.74911481,176.96,176.94,0.66]
[1752925637802,3.09812024,176.95,176.94,0.66]
[1752925638872,3.09812024,176.95,176.92,0.66]
[1752925639222,5.65227221,176.92,176.9,2.2062]
[1752925639381,3.09812024,176.91,176.9,2.2062]
[1752925639576,3.09812024,176.91,176.9,1.5462]
[1752925639765,3.09812024,176.91,176.87,0.2]
[1752925639964,3.09812024,176.88,176.87,0.2]
[1752925640170,3.09812024,176.88,176.87,0.86]
[1752925641282,8.75167066,176.88,176.87,0.86]
[1752925641897,3.09812024,176.9,176.87,0.86]
[1752925642110,39.58,176.95,176.88,0.66]
[1752925642285,3.09812024,176.89,176.88,0.66]
[1752925643101,8.75135106,176.89,176.88,0.66]
[1752925645503,5.65323082,176.89,176.88,0.66]
[1752925645669,8.75135106,176.89,176.88,0.66]
[1752925645864,8.75135106,176.89,176.87,0.2]
[1752925646064,3.09812024,176.88,176.87,0.2]
[1752925646796,5.65323082,176.89,176.87,0.9]
[1752925646970,5.65323082,176.89,176.88,0.7]
[1752925647172,3.09812024,176.89,176.88,0.7]
[1752925647417,5.65195274,176.93,176.88,0.7]
[1752925647915,3.09812024,176.89,176.88,0.7]
[1752925648266,5.65195274,176.93,176.88,0.7]
[1752925648466,3.09812024,176.9,176.88,0.7]
[1752925648873,3.09812024,176.89,176.87,0.2]
[1752925649388,3.09812024,176.88,176.87,0.9]
[1752925649769,29.09812024,176.94,176.87,0.9]
[1752925649770,14.39068053,176.92,176.87,0.2]
[1752925649985,3.09812024,176.88,176.87,0.2]
[1752925650375,0.26,176.91,176.87,0.2]
[1752925650705,3.09812024,176.88,176.87,0.2]
[1752925651371,9.01167066,176.88,176.87,0.2]
[1752925651791,69.02835094,176.88,176.83,0.03]
[1752925651973,3.09812024,176.84,176.83,0.03]
[1752925652467,3.35812024,176.84,176.83,0.03]
[1752925653099,9.01294946,176.84,176.83,0.03]
[1752925653273,8.75294946,176.84,176.83,0.03]
[1752925653597,3.09812024,176.8,176.79,0.03]
[1752925654472,3.35812024,176.8,176.79,0.03]
[1752925654976,3.09812024,176.8,176.79,0.03]
[1752925655299,5.65514901,176.83,176.79,0.73]
[1752925655596,3.09812024,176.8,176.79,0.73]
[1752925655794,3.09812024,176.8,176.79,0.03]
[1752925656992,3.09812024,176.8,176.79,0.73]
[1752925657198,8.75422883,176.8,176.79,0.73]
[1752925657607,8.75422883,176.8,176.79,0.03]
[1752925657904,3.09812024,176.8,176.79,0.73]
[1752925658276,0.26,176.84,176.79,0.73]
[1752925658481,3.09812024,176.81,176.79,0.73]
[1752925658680,3.09812024,176.82,176.79,0.73]
[1752925658881,5.65387007,176.87,176.8,1.5889]
[1752925659090,3.09812024,176.84,176.81,0.7]
[1752925659602,3.09812024,176.85,176.81,0.7]
[1752925659804,3.09812024,176.84,176.81,0.7]
[1752925660114,3.09812024,176.84,176.81,88.3]
[1752925660323,3.09812024,176.84,176.82,0.7]
[1752925660822,3.09812024,176.85,176.82,0.7]
[1752925662005,3.09812024,176.84,176.83,0.7]
[1752925662235,3.09812024,176.84,176.81,0.7]
[1752925662413,3.09812024,176.84,176.82,0.7]
[1752925662710,3.09812024,176.83,176.8,89.8889]
[1752925663008,3.09812024,176.81,176.8,89.1889]
[1752925663584,3.09812024,176.81,176.8,88.3]
[1752925663784,3.09812024,176.82,176.8,88.3]
[1752925664108,3.09812024,176.81,176.8,87.6]
[1752925664297,3.09812024,176.82,176.8,87.6]
[1752925664611,3.09812024,176.82,176.81,0.7]
[1752925665309,5.65492245,176.84,176.81,0.7]
[1752925665509,3.09812024,176.83,176.81,0.7]
[1752925665685,3.09812024,176.84,176.81,0.7]
[1752925665885,3.09812024,176.85,176.81,0.7]
[1752925666093,3.09812024,176.85,176.81,3.79812024]
[1752925666293,3.09812024,176.85,176.82,0.7]
[1752925666700,3.09812024,176.85,176.83,39.82]
[1752925666900,3.09812024,176.84,176.83,40.52]
[1752925667085,3.09812024,176.84,176.83,39.82]
[1752925668415,0.06,176.88,176.83,39.82]
[1752925668613,3.09812024,176.85,176.83,39.82]
[1752925668791,3.09812024,176.85,176.84,0.7]
[1752925668990,0.06,176.88,176.84,0.7]
[1752925669499,0.06,176.88,176.85,3.09812024]
[1752925669706,3.15812024,176.88,176.86,0.7]
[1752925670311,3.09812024,176.87,176.86,0.7]
[1752925670518,8.75214377,176.87,176.84,0.7]
[1752925670822,3.09812024,176.86,176.84,0.7]
[1752925671125,3.09812024,176.86,176.85,0.7]
[1752925672709,0.06,176.88,176.85,0.7]
[1752925672710,3.09812024,176.87,176.85,0.7]
[1752925672909,3.09812024,176.87,176.83,41.4089]
[1752925673108,3.09812024,176.87,176.86,0.7]
[1752925674926,8.75199031,176.87,176.86,0.7]
[1752925675418,3.15812024,176.88,176.86,0.7]
[1752925675621,8.81168847,176.88,176.86,0.7]
[1752925675922,3.09812024,176.87,176.84,34.58]
[1752925676121,3.09812024,176.87,176.85,0.72]
[1752925676424,3.09812024,176.86,176.85,0.72]
[1752925677330,8.75204864,176.87,176.85,0.72]
[1752925677710,3.09812024,176.87,176.85,0.72]
[1752925678116,3.09812024,176.87,176.86,0.72]
[1752925679321,8.75199031,176.87,176.84,34.58]
[1752925679521,3.09812024,176.86,176.85,0.72]
[1752925679720,3.09812024,176.86,176.83,41.4089]
[1752925679915,3.09812024,176.85,176.83,40.54]
[1752925680303,0.06,176.86,176.83,40.54]
[1752925680504,3.09812024,176.85,176.83,40.54]
[1752925680904,3.09812024,176.85,176.83,128.14]
[1752925682030,3.09812024,176.85,176.84,0.72]
[1752925682235,8.81243422,176.86,176.84,0.72]
[1752925683026,3.09812024,176.85,176.84,0.72]
[1752925683826,3.09812024,176.85,176.83,127.42]
[1752925684030,3.09812024,176.84,176.82,0.72]
[1752925684326,3.09812024,176.83,176.82,0.72]
[1752925684515,3.09812024,176.83,176.81,73.69]
[1752925684715,3.09812024,176.83,176.81,74.41]
[1752925684918,8.75333322,176.83,176.81,74.41]
[1752925686127,8.75333322,176.83,176.81,40.55]
[1752925686515,8.75358907,176.82,176.81,39.83]
[1752925687221,8.75358907,176.82,176.81,0.03]
[1752925687624,3.09812024,176.85,176.81,43.60812024]
[1752925687821,3.09812024,176.85,176.82,0.72]
[1752925688225,3.09812024,176.83,176.81,39.79]
[1752925688411,3.09812024,176.83,176.82,0.72]
[1752925689309,8.75320928,176.84,176.82,0.72]
[1752925689620,3.09812024,176.84,176.83,0.72]
[1752925690712,3.09812024,176.84,176.81,39.79]
[1752925691018,5.65461708,176.85,176.81,39.79]
[1752925691019,3.09812024,176.83,176.81,40.51]
[1752925691223,3.09812024,176.83,176.82,0.72]
[1752925693540,3.09812024,176.84,176.82,0.72]
[1752925693838,3.09812024,176.84,176.83,0.72]
[1752925695108,0.06,176.86,176.83,40.44]
[1752925695310,3.15812024,176.86,176.84,0.72]
[1752925695533,3.09812024,176.85,176.83,39.72]
[1752925695841,3.09812024,176.85,176.83,40.44]
[1752925696222,3.09812024,176.84,176.83,40.44]
[1752925696537,3.09812024,176.84,176.82,39.72]
[1752925696831,8.75297909,176.84,176.82,40.44]
[1752925697038,5.65485885,176.84,176.82,0.72]
[1752925697216,8.75297909,176.84,176.82,0.72]
[1752925697663,3.09812024,176.84,176.82,0.72]
[1752925699211,3.09812024,176.83,176.82,0.72]
[1752925699451,3.09812024,176.83,176.81,127.35]
[1752925699936,3.09812024,176.83,176.81,128.07]
[1752925701433,5.65450947,176.85,176.81,128.07]
[1752925701738,3.09812024,176.83,176.81,128.07]
[1752925701917,3.09812024,176.83,176.81,88.35]
[1752925702118,3.09812024,176.83,176.81,128.07]
[1752925702537,5.65450947,176.85,176.81,87.63]
[1752925702538,3.09812024,176.82,176.81,87.63]
[1752925703438,8.75358907,176.82,176.81,87.63]
[1752925703640,9.01358907,176.82,176.81,0.03]
[1752925708065,8.75358907,176.82,176.81,0.03]
[1752925708232,8.75358907,176.82,176.81,0.75]
[1752925708928,5.65450947,176.85,176.81,0.75]
[1752925709129,5.65514901,176.83,176.81,0.75]
[1752925709439,5.65514901,176.83,176.82,0.72]
[1752925709931,8.75326925,176.83,176.82,0.72]
[1752925710140,8.75306628,176.84,176.82,0.72]
[1752925710321,5.65494604,176.84,176.82,0.72]
[1752925710655,5.65494604,176.84,176.83,0.72]
[1752925711244,0.06,176.86,176.83,0.72]
[1752925711446,0.06,176.86,176.83,43.53812024]
[1752925711683,0.06,176.86,176.85,3.09812024]
[1752925712273,0.06,176.86,176.85,3.81812024]
[1752925712938,0.06,176.86,176.85,43.65812024]
[1752925713139,0.06,176.86,176.85,60.44280421]
[1752925718367,0.06,176.86,176.85,61.00825515]
[1752925719574,0.06,176.86,176.85,67.28855515]
[1752925719761,0.06,176.86,176.85,193.37717539]
[1752925719953,0.06,176.86,176.85,192.81172445]
[1752925720355,0.06,176.86,176.85,189.71360421]
[1752925723678,0.06,176.86,176.85,149.87360421]
[1752925723854,0.06,176.86,176.85,189.67360421]
[1752925724547,0.06,176.86,176.85,198.42623392]
[1752925724948,0.06,176.86,176.85,192.77172445]
[1752925725678,0.06,176.86,176.85,198.42623392]
[1752925728471,0.06,176.88,176.87,50.64468397]
[1752925728675,0.06,176.88,176.87,181.66819121]
[1752925728975,0.06,176.88,176.87,181.82280421]
[1752925730369,0.06,176.88,176.87,187.47667428]
[1752925730977,0.06,176.88,176.87,336.17667428]
[1752925731761,0.06,176.88,176.87,353.10667428]
[1752925732559,0.06,176.89,176.87,358.74767428]
[1752925732753,0.06,176.89,176.88,56.66165925]
[1752925734088,0.06,176.89,176.88,62.31520967]
[1752925735685,0.06,176.89,176.88,79.24520967]
[1752925736188,0.06,176.92,176.91,50.64468397]
[1752925736386,0.06,176.92,176.91,181.58806338]
[1752925736584,0.06,176.92,176.91,188.07280421]
[1752925738379,0.06,176.92,176.91,193.72539592]
[1752925739994,0.06,176.92,176.91,342.42539592]
[1752925740370,0.06,176.92,176.91,336.77280421]
[1752925740691,0.06,176.92,176.91,286.82468397]
[1752925740864,0.06,176.92,176.91,355.66280421]
[1752925741276,0.06,176.92,176.91,356.32280421]
[1752925742597,0.06,176.92,176.91,330.32280421]
[1752925742974,0.06,176.92,176.91,290.58280421]
[1752925743182,0.06,176.92,176.91,355.70280421]
[1752925744404,0.06,176.92,176.91,356.36280421]
[1752925745906,0.06,176.92,176.91,207.66280421]
[1752925747500,0.06,176.92,176.91,207.00280421]
[1752925748101,0.06,176.92,176.91,203.90468397]
[1752925748286,0.06,176.92,176.91,181.00280421]
[1752925750009,0.06,176.92,176.91,181.66280421]
[1752925754982,0.06,176.92,176.91,181.00280421]
[1752925756699,0.06,176.92,176.91,138.12468397]
[1752925756911,9.07039245,176.92,176.91,87.48]
[1752925757099,9.07039245,176.92,176.91,127.2]
[1752925757722,5.97227221,176.92,176.91,127.2]
[1752925758916,9.07039245,176.92,176.89,0.03]
[1752925759086,3.09812024,176.9,176.89,0.03]
[1752925759612,3.35812024,176.9,176.89,0.03]
[1752925759983,9.01103148,176.9,176.89,0.03]
[1752925762112,10.63993148,176.9,176.89,0.03]
[1752925764014,24.7722096,176.9,176.84,39.72]
[1752925764312,3.09812024,176.85,176.83,0.03]
[1752925764514,3.09812024,176.84,176.83,0.03]
[1752925764686,3.35812024,176.84,176.83,0.03]
[1752925764890,0.26,176.86,176.83,0.03]
[1752925765214,3.09812024,176.85,176.83,0.03]
[1752925765407,3.09812024,176.84,176.83,0.03]
[1752925765607,3.35812024,176.84,176.83,0.03]
[1752925766205,9.01294946,176.84,176.83,0.03]
[1752925769194,5.91482922,176.84,176.83,0.03]
[1752925769411,5.65482922,176.84,176.83,0.03]
[1752925769795,3.09812024,176.87,176.83,20.62280421]
[1752925770002,3.09812024,176.88,176.84,40.71]
[1752925770508,3.09812024,176.87,176.84,40.0]
[1752925770815,3.09812024,176.86,176.84,40.0]
[1752925771012,0.26,176.87,176.84,40.0]
[1752925771213,5.65383672,176.88,176.84,40.71]
[1752925771423,8.75195696,176.88,176.85,0.71]
[1752925771722,3.09812024,176.87,176.86,40.08]
[1752925772038,3.35812024,176.87,176.86,40.08]
[1752925772334,5.65418975,176.86,176.84,40.08]
[1752925772537,3.35812024,176.85,176.84,40.08]
[1752925772736,3.35812024,176.85,176.83,0.03]
[1752925772895,3.09812024,176.84,176.83,0.03]
[1752925773932,8.75294946,176.84,176.83,0.03]
[1752925774814,5.65482922,176.84,176.83,0.03]
[1752925776213,8.75294946,176.84,176.83,0.03]
[1752925778515,9.01294946,176.84,176.83,0.03]
[1752925780427,10.52814946,176.84,176.81,0.03]
[1752925780618,3.09812024,176.82,176.81,0.03]
[1752925781116,3.35812024,176.82,176.78,87.48]
[1752925781317,0.26,176.81,176.76,40.09]
[1752925781510,3.09812024,176.79,176.76,40.8]
[1752925782014,0.26,176.81,176.76,40.8]
[1752925782216,3.09812024,176.79,176.76,40.8]
[1752925782413,3.09812024,176.78,176.76,40.8]
[1752925783214,3.09812024,176.77,176.76,40.09]
[1752925783440,5.65610859,176.8,176.76,40.8]
[1752925783738,8.75422883,176.8,176.77,0.71]
[1752925784032,5.65610859,176.8,176.78,0.71]
[1752925784327,8.75422883,176.8,176.78,40.77]
[1752925784530,3.09812024,176.79,176.76,0.03]
[1752925784748,3.09812024,176.78,176.76,40.09]
[1752925784916,0.26,176.79,176.76,40.09]
[1752925785230,3.09812024,176.77,176.76,40.09]
[1752925785432,8.75518874,176.77,176.76,40.09]
[1752925785940,8.75518874,176.77,176.76,0.03]
[1752925786824,5.6570685,176.77,176.76,0.03]
[1752925787013,5.6570685,176.77,176.76,0.74]
[1752925787735,3.09812024,176.78,176.76,0.03]
[1752925787936,5.65610859,176.8,176.76,0.74]
[1752925788239,3.09812024,176.78,176.76,0.74]
[1752925788424,3.09812024,176.78,176.77,0.71]
[1752925788624,3.09812024,176.78,176.76,0.03]
[1752925788833,3.09812024,176.78,176.76,40.07]
[1752925789715,8.75516371,176.78,176.76,40.07]
[1752925789912,3.09812024,176.77,176.76,40.07]
[1752925790515,5.65704347,176.78,176.76,0.03]
[1752925790752,3.09812024,176.77,176.76,0.03]
[1752925791309,3.35812024,176.77,176.76,0.03]
[1752925791740,5.9170685,176.77,176.76,0.03]
[1752925791955,9.01518874,176.77,176.76,0.03]
[1752925793111,5.9170685,176.77,176.76,0.03]
[1752925793312,8.75518874,176.77,176.76,0.03]
[1752925793815,9.01518874,176.77,176.76,0.03]
[1752925794815,8.75518874,176.77,176.76,0.03]
[1752925796517,9.01518874,176.77,176.76,0.03]
[1752925796725,9.01518874,176.77,176.75,0.03]
[1752925797045,3.35812024,176.76,176.75,0.03]
[1752925798523,6.45624048,176.76,176.75,0.03]
[1752925798723,12.11362902,176.76,176.75,0.03]
[1752925799215,9.01550878,176.76,176.75,0.03]
[1752925799514,26.25710039,176.76,176.69,41.12]
[1752925799712,0.26,176.75,176.69,40.42]
[1752925800125,3.09812024,176.7,176.69,40.42]
[1752925800735,5.65962986,176.69,176.64,17.48468397]
[1752925801042,5.65962986,176.69,176.65,40.42]
[1752925801043,3.09812024,176.68,176.65,40.42]
[1752925801248,5.91962986,176.69,176.65,40.42]
[1752925801448,3.09812024,176.68,176.65,41.12]
[1752925801626,5.65962986,176.69,176.66,0.7]
[1752925801832,3.09812024,176.7,176.66,3.79812024]
[1752925802022,3.09812024,176.7,176.67,0.7]
[1752925802425,3.09812024,176.7,176.68,0.7]
[1752925802621,3.09812024,176.69,176.66,88.18]
[1752925802849,8.7583908,176.67,176.66,87.48]
[1752925803052,8.75816453,176.68,176.66,87.48]
[1752925803347,3.09812024,176.67,176.65,40.42]
[1752925803520,3.09812024,176.66,176.65,40.42]
[1752925804750,3.09812024,176.66,176.63,87.48]
[1752925805047,20.06991977,176.68,176.63,88.18]
[1752925805220,3.09812024,176.65,176.63,88.18]
[1752925805724,5.66004429,176.68,176.64,0.7]
[1752925805930,8.75816453,176.68,176.64,0.7]
[1752925806230,8.7574298,176.7,176.65,43.49812024]
[1752925806430,8.7574298,176.7,176.65,130.97812024]
[1752925806630,8.7574298,176.7,176.66,0.7]
[1752925806949,3.09812024,176.7,176.66,0.7]
[1752925807149,26.26,176.75,176.67,19.88280421]
[1752925807333,3.09812024,176.72,176.68,41.1]
[1752925807646,5.65802874,176.74,176.68,41.1]
[1752925807647,3.09812024,176.71,176.68,41.1]
[1752925808017,3.09812024,176.69,176.68,41.1]
[1752925808221,3.09812024,176.69,176.68,40.4]
[1752925808422,3.09812024,176.69,176.66,41.1]
[1752925808625,3.09812024,176.68,176.66,41.1]
[1752925808822,3.09812024,176.67,176.66,40.4]
[1752925809024,8.7583908,176.67,176.66,40.4]
[1752925809545,8.7583908,176.67,176.62,0.7]
[1752925809853,3.09812024,176.64,176.62,0.7]
[1752925810051,20.07094696,176.67,176.62,41.1]
[1752925810347,3.09812024,176.63,176.59,0.7]
[1752925810550,3.09812024,176.63,176.6,40.38]
[1752925810923,3.09812024,176.63,176.61,0.7]
[1752925811140,8.75999128,176.63,176.61,0.7]
[1752925812033,3.09812024,176.63,176.6,40.38]
[1752925812241,3.09812024,176.63,176.62,0.7]
[1752925812450,5.66126323,176.64,176.62,0.7]
[1752925812744,3.09812024,176.63,176.62,0.7]
[1752925813656,8.75967263,176.63,176.62,0.7]
[1752925813949,5.66131733,176.64,176.62,0.7]
[1752925814155,5.66131733,176.64,176.6,87.48]
[1752925814329,5.66027056,176.67,176.62,17.48468397]
[1752925814529,3.09812024,176.68,176.64,19.88280421]
[1752925814729,3.09812024,176.69,176.65,41.08]
[1752925814935,3.09812024,176.69,176.66,0.7]
[1752925815152,8.75796832,176.69,176.67,0.7]
[1752925815353,3.09812024,176.68,176.65,41.08]
[1752925815530,3.09812024,176.67,176.65,41.08]
[1752925815730,5.65984808,176.69,176.65,41.08]
[1752925815939,3.09812024,176.68,176.65,40.38]
[1752925816161,3.09812024,176.67,176.66,0.7]
[1752925816836,3.09812024,176.68,176.66,0.7]
[1752925817371,8.75809236,176.68,176.67,0.7]
[1752925817975,8.75809236,176.68,176.65,41.08]
[1752925818275,3.09812024,176.67,176.65,41.08]
[1752925818836,8.75809236,176.68,176.65,41.08]
[1752925819033,8.75809236,176.68,176.66,0.7]
[1752925819476,5.659718,176.69,176.67,0.7]
[1752925819970,5.659718,176.69,176.68,0.7]
[1752925820556,8.75783824,176.69,176.68,0.7]
[1752925820766,8.75783824,176.69,176.66,0.7]
[1752925821669,8.75783824,176.69,176.67,0.7]
[1752925821843,3.09812024,176.69,176.65,43.47812024]
[1752925822167,3.09812024,176.7,176.68,0.7]
[1752925822393,3.09812024,176.7,176.69,0.7]
[1752925822543,8.75744238,176.7,176.67,0.7]
[1752925822861,8.75744238,176.7,176.68,0.7]
[1752925823674,5.65866908,176.72,176.68,0.7]
[1752925823866,3.09812024,176.7,176.68,0.7]
[1752925824049,3.09812024,176.7,176.66,0.7]
[1752925824250,3.09812024,176.7,176.65,43.47812024]
[1752925824450,5.65866908,176.72,176.67,0.7]
[1752925824661,3.09812024,176.7,176.67,0.7]
[1752925825676,3.09812024,176.7,176.68,41.0]
[1752925825864,3.09812024,176.7,176.68,40.3]
[1752925826071,3.09812024,176.7,176.69,0.71]
[1752925826366,5.65914239,176.71,176.69,0.71]
[1752925826564,8.75689695,176.72,176.69,0.71]
[1752925827149,5.65877671,176.72,176.69,0.71]
[1752925827345,3.09812024,176.7,176.68,40.3]
[1752925827547,3.09812024,176.7,176.68,41.01]
[1752925827748,5.65877671,176.72,176.68,41.01]
[1752925827967,3.09812024,176.71,176.68,41.01]
[1752925828279,8.7574298,176.7,176.68,41.01]
[1752925828981,8.7574298,176.7,176.68,40.3]
[1752925829174,3.09812024,176.69,176.68,40.3]
[1752925830071,8.75801719,176.69,176.67,0.71]
[1752925830474,5.65989695,176.69,176.67,0.71]
[1752925830669,8.75801719,176.69,176.67,0.71]
[1752925831770,3.09812024,176.69,176.67,0.71]
[1752925832770,3.09812024,176.68,176.65,88.19]
[1752925832975,3.09812024,176.68,176.65,128.49]
[1752925833878,5.66027056,176.67,176.65,128.49]
[1752925834070,5.66027056,176.67,176.66,0.03]
[1752925836285,8.7583908,176.67,176.66,0.03]
[1752925838388,5.65995019,176.68,176.66,0.03]
[1752925838597,3.09812024,176.67,176.66,0.03]
[1752925839791,5.66027056,176.67,176.66,0.03]
[1752925839983,8.7583908,176.67,176.66,0.03]
[1752925840576,0.26,176.7,176.66,0.03]
[1752925840770,3.09812024,176.67,176.66,0.03]
[1752925841768,9.0183908,176.67,176.66,0.03]
[1752925844204,5.92027056,176.67,176.66,0.03]
[1752925844379,9.0183908,176.67,176.66,0.03]
[1752925846606,12.11651104,176.67,176.66,0.03]
[1752925847194,26.26718744,176.67,176.62,0.03]
[1752925847372,3.09812024,176.63,176.62,0.03]
[1752925847975,0.26,176.64,176.62,0.03]
[1752925848180,3.09812024,176.63,176.62,0.03]
[1752925850099,8.75967263,176.63,176.62,0.03]
[1752925850415,9.01967263,176.63,176.62,0.03]
[1752925851206,9.01967263,176.63,176.62,1e-08]
[1752925851501,10.59347263,176.63,176.62,1e-08]
[1752925851803,26.0,176.6,176.53,40.26]
[1752925852005,5.66443865,176.54,176.53,0.71]
[1752925852598,8.76255889,176.54,176.5,40.28]
[1752925852801,5.66443865,176.54,176.51,0.71]
[1752925852995,8.76255889,176.54,176.52,0.71]
[1752925853501,5.66443865,176.54,176.52,0.71]
[1752925854708,8.7623434,176.55,176.53,0.71]
[1752925854909,3.09812024,176.55,176.54,0.71]
[1752925855072,3.09812024,176.58,176.54,3.80812024]
[1752925855280,3.09812024,176.59,176.55,0.71]
[1752925856096,8.76095505,176.59,176.55,0.71]
[1752925856408,5.66283481,176.59,176.55,0.71]
[1752925856703,8.76095505,176.59,176.55,0.71]
[1752925857285,3.09812024,176.58,176.52,1.5629]
[1752925857482,3.09812024,176.58,176.56,0.67]
[1752925857805,3.09812024,176.58,176.52,1.5929]
[1752925858009,3.09812024,176.57,176.54,0.67]
[1752925858391,3.09812024,176.57,176.52,44.95102024]
[1752925858712,3.09812024,176.57,176.55,0.67]
[1752925858914,3.09812024,176.56,176.55,0.67]
[1752925860514,8.76191724,176.56,176.55,0.67]
[1752925860692,8.76191724,176.56,176.52,2.2629]
[1752925861009,3.09812024,176.55,176.52,0.03]
[1752925861229,3.09812024,176.55,176.53,0.67]
[1752925861586,5.663797,176.56,176.54,0.67]
[1752925861810,3.09812024,176.58,176.54,0.67]
[1752925862115,5.66283481,176.59,176.54,0.67]
[1752925862116,3.09812024,176.57,176.54,0.67]
[1752925862486,8.76181743,176.57,176.55,0.67]
[1752925862693,3.09812024,176.56,176.53,0.67]
[1752925862987,5.66369719,176.57,176.53,0.67]
[1752925863303,3.09812024,176.54,176.52,0.03]
[1752925863609,3.09812024,176.54,176.53,0.67]
[1752925863805,3.09812024,176.54,176.52,0.03]
[1752925864216,3.09812024,176.53,176.52,0.03]
[1752925864389,8.76287977,176.53,176.52,0.03]
[1752925865510,3.09812024,176.53,176.52,0.03]
[1752925866611,3.09812024,176.54,176.52,0.7]
[1752925867486,5.66475953,176.53,176.52,0.7]
[1752925869613,5.663797,176.56,176.52,0.7]
[1752925869793,3.09812024,176.54,176.52,0.7]
[1752925870506,5.663797,176.56,176.52,0.7]
[1752925870707,5.66475953,176.53,176.52,0.7]
[1752925871515,14.4186906,176.57,176.52,0.7]
[1752925871716,3.09812024,176.54,176.52,0.7]
[1752925871928,40.41676577,176.6,176.52,0.7]
[1752925872098,3.09812024,176.58,176.53,43.33812024]
[1752925872464,8.75999318,176.62,176.57,3.09812024]
[1752925872603,0.06,176.67,176.61,3.09812024]
[1752925872794,8.8183908,176.67,176.62,3.76812024]
[1752925872985,5.72027056,176.67,176.62,3.09812024]
[1752925873185,5.72027056,176.67,176.63,3.76812024]
[1752925873416,5.72027056,176.67,176.64,0.67]
[1752925873621,5.72027056,176.67,176.65,0.67]
[1752925874207,8.8183908,176.67,176.65,0.67]
[1752925874928,8.8183908,176.67,176.63,0.67]
[1752925875133,8.8183908,176.67,176.64,0.67]
[1752925875420,5.72027056,176.67,176.65,0.67]
[1752925877444,0.06,176.67,176.66,3.76812024]
[1752925877621,0.06,176.67,176.66,40.91]
[1752925878530,0.06,176.67,176.66,44.00812024]
[1752925882430,0.06,176.67,176.66,60.79280421]